[Event "*** Titled Tuesday Blitz"]
[Site "Chess.com"]
[Date "2020.12.01"]
[Round "6"]
[White "plumalka"]
[Black "CM_rui"]
[Result "0-1"]
[WhiteElo "2478"]
[BlackElo "2386"]
[TimeControl "180+1"]
[EndTime "11:05:40 PST"]
[Termination "CM_rui won by resignation"]

1. e4 {[%clk 0:03:00.9]} 1... e5 {[%clk 0:02:59.9]} 2. Nf3 {[%clk 0:03:00.3]}
2... Nc6 {[%clk 0:02:59.5]} 3. Nc3 {[%clk 0:03:00.9]} 3... Nf6 {[%clk
0:02:59.2]} 4. a3 {[%clk 0:03:01.6]} 4... a6 {[%clk 0:02:57.5]} 5. d4 {[%clk
0:03:00.9]} 5... exd4 {[%clk 0:02:57.5]} 6. Nxd4 {[%clk 0:03:01.8]} 6... Nxd4
{[%clk 0:02:57.6]} 7. Qxd4 {[%clk 0:03:01.6]} 7... d6 {[%clk 0:02:58.5]} 8. Bc4
{[%clk 0:02:54.7]} 8... Be7 {[%clk 0:02:57.9]} 9. O-O {[%clk 0:02:54.6]} 9...
O-O {[%clk 0:02:56.4]} 10. f4 {[%clk 0:02:45.2]} 10... Ne8 {[%clk 0:02:42.2]}
11. Be3 {[%clk 0:02:39.6]} 11... Be6 {[%clk 0:02:33.8]} 12. Nd5 {[%clk
0:02:25.5]} 12... b5 {[%clk 0:02:22.9]} 13. Ba2 {[%clk 0:01:56.3]} 13... Rc8
{[%clk 0:01:58.6]} 14. Rad1 {[%clk 0:01:50]} 14... Kh8 {[%clk 0:01:52.5]} 15.
Qd2 {[%clk 0:01:33.7]} 15... Nf6 {[%clk 0:01:35.9]} 16. Qd3 {[%clk 0:01:07.2]}
16... Bxd5 {[%clk 0:01:26.8]} 17. exd5 {[%clk 0:01:05.8]} 17... Qd7 {[%clk
0:01:23.4]} 18. c3 {[%clk 0:01:04.2]} 18... Qg4 {[%clk 0:01:16.5]} 19. Bb1
{[%clk 0:01:02.3]} 19... Qg6 {[%clk 0:01:12.7]} 20. Qd4 {[%clk 0:00:57.2]} 20...
Qh5 {[%clk 0:01:10.6]} 21. Rf3 {[%clk 0:00:52]} 21... c5 {[%clk 0:00:49.7]} 22.
dxc6 {[%clk 0:00:48.6]} 22... Rxc6 {[%clk 0:00:47]} 23. Rh3 {[%clk 0:00:44.1]}
23... Qg4 {[%clk 0:00:44.2]} 24. Qd3 {[%clk 0:00:25.6]} 24... h6 {[%clk
0:00:30.6]} 25. Bd4 {[%clk 0:00:24.8]} 25... Ne4 {[%clk 0:00:18.3]} 26. Re1
{[%clk 0:00:16.1]} 26... f5 {[%clk 0:00:17.3]} 27. Bc2 {[%clk 0:00:12.4]} 27...
Kh7 {[%clk 0:00:15.9]} 28. Bd1 {[%clk 0:00:12.1]} 28... Qg6 {[%clk 0:00:15.4]}
29. Bf3 {[%clk 0:00:11.4]} 29... d5 {[%clk 0:00:15.1]} 30. Bh5 {[%clk
0:00:09.9]} 30... Qd6 {[%clk 0:00:13.2]} 31. Be5 {[%clk 0:00:09.6]} 31... Qc5+
{[%clk 0:00:12.9]} 32. Bd4 {[%clk 0:00:09.9]} 32... Qd6 {[%clk 0:00:12]} 33.
Rhe3 {[%clk 0:00:06.8]} 33... Bf6 {[%clk 0:00:11.5]} 34. Bxf6 {[%clk 0:00:06]}
34... gxf6 {[%clk 0:00:07.7]} 35. Rd1 {[%clk 0:00:06.1]} 35... Rc5 {[%clk
0:00:06.4]} 36. Bf3 {[%clk 0:00:05.7]} 36... Rg8 {[%clk 0:00:05.8]} 37. Bxe4
{[%clk 0:00:03.3]} 37... fxe4 {[%clk 0:00:06.7]} 38. Rxe4 {[%clk 0:00:03.6]}
38... f5 {[%clk 0:00:06.8]} 39. Re5 {[%clk 0:00:03.7]} 39... Qg6 {[%clk
0:00:03.8]} 40. g3 {[%clk 0:00:03.4]} 40... Kh8 {[%clk 0:00:03.4]} 41. Qd4
{[%clk 0:00:03.4]} 41... Rc4 {[%clk 0:00:03.3]} 42. Re6+ {[%clk 0:00:03.7]}
42... Rxd4 {[%clk 0:00:03.4]} 43. Rxg6 {[%clk 0:00:03.7]} 43... Rxd1+ {[%clk
0:00:03.7]} 44. Kf2 {[%clk 0:00:04.4]} 44... Rxg6 {[%clk 0:00:04.6]} 45. Ke2
{[%clk 0:00:05]} 45... Rb1 {[%clk 0:00:05.2]} 46. Kd2 {[%clk 0:00:05]} 46...
Rxb2+ {[%clk 0:00:05.8]} 47. Kd3 {[%clk 0:00:05.2]} 47... Rxh2 {[%clk
0:00:06.7]} 0-1

[Event "*** Titled Tuesday Blitz"]
[Site "Chess.com"]
[Date "2020.12.01"]
[Round "6"]
[White "03revilo"]
[Black "redbaron8888"]
[Result "0-1"]
[WhiteElo "2337"]
[BlackElo "2560"]
[TimeControl "180+1"]
[EndTime "11:05:41 PST"]
[Termination "redbaron8888 won by resignation"]

1. e4 {[%clk 0:02:55]} 1... c5 {[%clk 0:02:58.8]} 2. Nf3 {[%clk 0:02:55.4]} 2...
d6 {[%clk 0:02:58.7]} 3. d4 {[%clk 0:02:55.6]} 3... cxd4 {[%clk 0:02:58.4]} 4.
Nxd4 {[%clk 0:02:56.5]} 4... Nf6 {[%clk 0:02:58.1]} 5. Nc3 {[%clk 0:02:55.9]}
5... a6 {[%clk 0:02:58.2]} 6. Be3 {[%clk 0:02:55.5]} 6... e5 {[%clk 0:02:57.4]}
7. Nf3 {[%clk 0:02:56.1]} 7... Be7 {[%clk 0:02:55.8]} 8. Bc4 {[%clk 0:02:56.1]}
8... O-O {[%clk 0:02:53.6]} 9. O-O {[%clk 0:02:55.1]} 9... Be6 {[%clk
0:02:51.7]} 10. Bb3 {[%clk 0:02:54.4]} 10... h6 {[%clk 0:02:49.9]} 11. Nh4
{[%clk 0:02:48.2]} 11... Nbd7 {[%clk 0:02:47.2]} 12. Qf3 {[%clk 0:02:37.7]}
12... Rc8 {[%clk 0:02:34.1]} 13. Nf5 {[%clk 0:02:32.1]} 13... Bxf5 {[%clk
0:02:30.1]} 14. exf5 {[%clk 0:02:13]} 14... b5 {[%clk 0:02:25.4]} 15. a3 {[%clk
0:01:58.3]} 15... Nc5 {[%clk 0:02:19.9]} 16. Bd5 {[%clk 0:01:40.7]} 16... Qc7
{[%clk 0:01:50.5]} 17. Qg3 {[%clk 0:01:17.7]} 17... Kh8 {[%clk 0:01:46.5]} 18.
Rad1 {[%clk 0:01:01.2]} 18... Na4 {[%clk 0:01:41.7]} 19. Nxa4 {[%clk 0:00:43.3]}
19... bxa4 {[%clk 0:01:42.6]} 20. c3 {[%clk 0:00:36.7]} 20... Nxd5 {[%clk
0:01:37.9]} 21. Rxd5 {[%clk 0:00:36.1]} 21... Qb7 {[%clk 0:01:35.3]} 22. Rd2
{[%clk 0:00:34.9]} 22... Rc4 {[%clk 0:01:28.9]} 23. Rfd1 {[%clk 0:00:29.1]}
23... Qe4 {[%clk 0:01:27.2]} 24. f6 {[%clk 0:00:20.2]} 24... gxf6 {[%clk
0:01:21.7]} 25. Bxh6 {[%clk 0:00:16.2]} 25... Rg8 {[%clk 0:01:21.7]} 26. Qh3
{[%clk 0:00:16.3]} 26... Qh7 {[%clk 0:01:21.7]} 27. Rd3 {[%clk 0:00:11.7]} 27...
Rcg4 {[%clk 0:01:10.3]} 28. g3 {[%clk 0:00:04.9]} 28... f5 {[%clk 0:01:05.5]}
29. Kg2 {[%clk 0:00:03.1]} 29... R8g6 {[%clk 0:01:03.7]} 30. Bc1 {[%clk
0:00:02.5]} 30... Rh4 {[%clk 0:00:58.5]} 31. Qxf5 {[%clk 0:00:01.8]} 31... Rxh2+
{[%clk 0:00:58.3]} 32. Kf1 {[%clk 0:00:02.5]} 32... Rf6 {[%clk 0:00:54]} 33.
Qxh7+ {[%clk 0:00:02]} 33... Kxh7 {[%clk 0:00:54.9]} 34. Ke2 {[%clk 0:00:02.5]}
34... Rfxf2+ {[%clk 0:00:53.2]} 35. Ke3 {[%clk 0:00:03.2]} 35... f5 {[%clk
0:00:49.7]} 36. Rd5 {[%clk 0:00:02.6]} 36... Bg5+ {[%clk 0:00:47.9]} 37. Kd3
{[%clk 0:00:03]} 37... e4+ {[%clk 0:00:46.4]} 38. Kc4 {[%clk 0:00:03.2]} 38...
Bxc1 {[%clk 0:00:46.1]} 39. Rxc1 {[%clk 0:00:04.1]} 39... Rd2 {[%clk 0:00:46.3]}
40. Rxd2 {[%clk 0:00:03]} 40... Rxd2 {[%clk 0:00:45.8]} 41. Kb4 {[%clk
0:00:03.7]} 41... e3 {[%clk 0:00:44.7]} 42. Kxa4 {[%clk 0:00:02.8]} 42... e2
{[%clk 0:00:43.5]} 43. Re1 {[%clk 0:00:03.3]} 43... Rxb2 {[%clk 0:00:44.1]} 44.
Ka5 {[%clk 0:00:03.8]} 44... Rb3 {[%clk 0:00:44.1]} 45. Kxa6 {[%clk 0:00:04]}
45... Rxa3+ {[%clk 0:00:44.3]} 46. Kb5 {[%clk 0:00:04.7]} 46... Rxc3 {[%clk
0:00:45.2]} 47. Rxe2 {[%clk 0:00:04.6]} 47... Rxg3 {[%clk 0:00:45.3]} 48. Kc6
{[%clk 0:00:05.2]} 48... Rd3 {[%clk 0:00:45.3]} 49. Rf2 {[%clk 0:00:04.5]} 49...
Kg6 {[%clk 0:00:45.3]} 50. Kd7 {[%clk 0:00:04.4]} 50... Kf6 {[%clk 0:00:45.2]}
51. Kc6 {[%clk 0:00:03.8]} 51... Ke5 {[%clk 0:00:43.6]} 52. Kd7 {[%clk 0:00:03]}
52... f4 {[%clk 0:00:42.7]} 53. Ke7 {[%clk 0:00:03.4]} 53... d5 {[%clk
0:00:42.4]} 54. Kf7 {[%clk 0:00:03.5]} 54... d4 {[%clk 0:00:42.2]} 55. Kg6
{[%clk 0:00:04.2]} 55... Rg3+ {[%clk 0:00:41.8]} 56. Kh5 {[%clk 0:00:03.9]}
56... d3 {[%clk 0:00:42.6]} 57. Kh4 {[%clk 0:00:04.1]} 57... Ke4 {[%clk
0:00:42.7]} 58. Rf1 {[%clk 0:00:03.3]} 58... d2 {[%clk 0:00:42.2]} 59. Rd1
{[%clk 0:00:02.9]} 59... Rg2 {[%clk 0:00:42.2]} 60. Kh3 {[%clk 0:00:02.4]} 60...
f3 {[%clk 0:00:42.5]} 61. Kh4 {[%clk 0:00:02.6]} 61... Ke3 {[%clk 0:00:42.7]}
62. Kh3 {[%clk 0:00:03.5]} 62... Ke2 {[%clk 0:00:42.4]} 63. Rh1 {[%clk
0:00:03.5]} 63... d1=Q {[%clk 0:00:41.7]} 64. Re1+ {[%clk 0:00:03.3]} 64... Kxe1
{[%clk 0:00:40.5]} 0-1

[Event "*** Titled Tuesday Blitz"]
[Site "Chess.com"]
[Date "2020.12.01"]
[Round "6"]
[White "Rap_woyska"]
[Black "Durarbayli"]
[Result "1-0"]
[WhiteElo "2497"]
[BlackElo "2742"]
[TimeControl "180+1"]
[EndTime "11:05:42 PST"]
[Termination "Rap_woyska won on time"]

1. c4 {[%clk 0:03:00.9]} 1... c5 {[%clk 0:02:58.1]} 2. Nf3 {[%clk 0:03:01.3]}
2... Nf6 {[%clk 0:02:57.8]} 3. Nc3 {[%clk 0:03:01.8]} 3... e6 {[%clk 0:02:57.5]}
4. e3 {[%clk 0:03:01.7]} 4... b6 {[%clk 0:02:54.8]} 5. d4 {[%clk 0:03:02.1]}
5... cxd4 {[%clk 0:02:55.7]} 6. exd4 {[%clk 0:03:03]} 6... Bb4 {[%clk
0:02:55.6]} 7. d5 {[%clk 0:02:47.8]} 7... exd5 {[%clk 0:02:39.7]} 8. cxd5 {[%clk
0:02:48.7]} 8... O-O {[%clk 0:02:38.6]} 9. Be2 {[%clk 0:02:34.7]} 9... Ba6
{[%clk 0:02:38.2]} 10. O-O {[%clk 0:02:32.5]} 10... Bxc3 {[%clk 0:02:35.2]} 11.
bxc3 {[%clk 0:01:59.1]} 11... Bxe2 {[%clk 0:02:05.5]} 12. Qxe2 {[%clk 0:02:00]}
12... Qc8 {[%clk 0:01:57]} 13. c4 {[%clk 0:01:58.1]} 13... Re8 {[%clk
0:01:55.5]} 14. Qd3 {[%clk 0:01:57.3]} 14... Na6 {[%clk 0:01:55.5]} 15. Nd4
{[%clk 0:01:38.4]} 15... Nc5 {[%clk 0:01:45.4]} 16. Qc2 {[%clk 0:01:38.5]} 16...
Qc7 {[%clk 0:01:36.8]} 17. Nb5 {[%clk 0:01:20.8]} 17... Qd8 {[%clk 0:01:03.6]}
18. Bf4 {[%clk 0:01:16.1]} 18... Re4 {[%clk 0:00:58.6]} 19. Bc7 {[%clk
0:00:59.5]} 19... Qc8 {[%clk 0:00:40.3]} 20. Bg3 {[%clk 0:00:59.8]} 20... Nb7
{[%clk 0:00:30]} 21. Rac1 {[%clk 0:00:49]} 21... a6 {[%clk 0:00:24.1]} 22. Nc7
{[%clk 0:00:49.3]} 22... Ra7 {[%clk 0:00:19.7]} 23. f3 {[%clk 0:00:49.5]} 23...
Re7 {[%clk 0:00:13]} 24. d6 {[%clk 0:00:42.2]} 24... Re3 {[%clk 0:00:11.1]} 25.
Qd2 {[%clk 0:00:35.2]} 25... Ra3 {[%clk 0:00:10.3]} 26. Qb2 {[%clk 0:00:28.1]}
26... Rd3 {[%clk 0:00:07.7]} 27. Qxb6 {[%clk 0:00:28.2]} 27... Nxd6 {[%clk
0:00:07.9]} 28. Qxa7 {[%clk 0:00:24.5]} 28... Nf5 {[%clk 0:00:08.2]} 29. Qa8
{[%clk 0:00:22.8]} 29... Qxa8 {[%clk 0:00:06.7]} 30. Nxa8 {[%clk 0:00:23.7]}
30... h5 {[%clk 0:00:07]} 31. Rfd1 {[%clk 0:00:23.5]} 31... Ra3 {[%clk
0:00:06.7]} 32. Nb6 {[%clk 0:00:22.6]} 32... h4 {[%clk 0:00:06.3]} 33. Bf2
{[%clk 0:00:21.1]} 33... Rxa2 {[%clk 0:00:05.6]} 34. Nxd7 {[%clk 0:00:20.9]}
34... Nh5 {[%clk 0:00:06.2]} 35. Ne5 {[%clk 0:00:19.4]} 35... Nf4 {[%clk
0:00:06.2]} 36. Kf1 {[%clk 0:00:17]} 36... f6 {[%clk 0:00:05.5]} 37. Nd3 {[%clk
0:00:14.6]} 37... Ne2 {[%clk 0:00:02.4]} 38. Ra1 {[%clk 0:00:13.5]} 38... Rc2
{[%clk 0:00:03]} 39. Nb4 {[%clk 0:00:13.7]} 39... Rb2 {[%clk 0:00:02.5]} 40.
Rab1 {[%clk 0:00:13.7]} 40... Rxb1 {[%clk 0:00:02.9]} 41. Rxb1 {[%clk
0:00:13.5]} 41... Nc3 {[%clk 0:00:03.8]} 42. Ra1 {[%clk 0:00:13.9]} 42... h3
{[%clk 0:00:03.4]} 43. gxh3 {[%clk 0:00:13.8]} 43... Nd6 {[%clk 0:00:01.3]} 44.
c5 {[%clk 0:00:13.3]} 1-0

[Event "*** Titled Tuesday Blitz"]
[Site "Chess.com"]
[Date "2020.12.01"]
[Round "6"]
[White "WeAintSurePal"]
[Black "biostatistician"]
[Result "0-1"]
[WhiteElo "2367"]
[BlackElo "2575"]
[TimeControl "180+1"]
[EndTime "11:05:42 PST"]
[Termination "biostatistician won by checkmate"]

1. d4 {[%clk 0:03:00.9]} 1... Nf6 {[%clk 0:02:58.7]} 2. Nf3 {[%clk 0:03:01.4]}
2... g6 {[%clk 0:02:59]} 3. Bg5 {[%clk 0:03:01]} 3... Bg7 {[%clk 0:02:59.9]} 4.
Nbd2 {[%clk 0:03:01.5]} 4... O-O {[%clk 0:02:58]} 5. e3 {[%clk 0:03:01.4]} 5...
b6 {[%clk 0:02:57]} 6. a4 {[%clk 0:03:00.4]} 6... Bb7 {[%clk 0:02:55.3]} 7. a5
{[%clk 0:03:00.6]} 7... c5 {[%clk 0:02:55.2]} 8. c3 {[%clk 0:02:59.3]} 8... cxd4
{[%clk 0:02:43.9]} 9. exd4 {[%clk 0:03:00.2]} 9... bxa5 {[%clk 0:02:44.3]} 10.
Be2 {[%clk 0:02:59.8]} 10... Nc6 {[%clk 0:02:43.3]} 11. O-O {[%clk 0:02:59.6]}
11... d5 {[%clk 0:02:43.5]} 12. Nb3 {[%clk 0:02:59]} 12... Ne4 {[%clk
0:02:35.3]} 13. Be3 {[%clk 0:02:56.8]} 13... Qb6 {[%clk 0:02:34.4]} 14. Ne5
{[%clk 0:02:40.2]} 14... Nxe5 {[%clk 0:02:19.1]} 15. dxe5 {[%clk 0:02:39.9]}
15... Qc7 {[%clk 0:02:19.7]} 16. f4 {[%clk 0:02:37.3]} 16... f6 {[%clk
0:02:04.5]} 17. Nd4 {[%clk 0:02:36]} 17... fxe5 {[%clk 0:01:58.3]} 18. Ne6
{[%clk 0:02:35.4]} 18... Qd6 {[%clk 0:01:57.3]} 19. Nxg7 {[%clk 0:02:32.9]}
19... exf4 {[%clk 0:01:45.3]} 20. Ne6 {[%clk 0:02:18.2]} 20... Qxe6 {[%clk
0:01:42]} 21. Rxf4 {[%clk 0:02:18.6]} 21... Rxf4 {[%clk 0:01:36.8]} 22. Bxf4
{[%clk 0:02:19.5]} 22... Qb6+ {[%clk 0:01:36.6]} 23. Qd4 {[%clk 0:02:16]} 23...
Qxb2 {[%clk 0:00:55]} 24. Re1 {[%clk 0:01:52.1]} 24... Qxc3 {[%clk 0:00:51.2]}
25. Qxc3 {[%clk 0:01:47.5]} 25... Nxc3 {[%clk 0:00:52.1]} 26. Bg4 {[%clk
0:01:47.8]} 26... Ne4 {[%clk 0:00:48.9]} 27. Be6+ {[%clk 0:01:45.3]} 27... Kg7
{[%clk 0:00:45.9]} 28. Be5+ {[%clk 0:01:44.9]} 28... Nf6 {[%clk 0:00:46.3]} 29.
Rc1 {[%clk 0:01:41.6]} 29... Kf8 {[%clk 0:00:29.1]} 30. Rc7 {[%clk 0:01:29.9]}
30... Ba6 {[%clk 0:00:29.1]} 31. Bf4 {[%clk 0:01:12.8]} 31... Bc4 {[%clk
0:00:24.7]} 32. Bh6+ {[%clk 0:00:38.7]} 32... Ke8 {[%clk 0:00:24.4]} 33. Rc5
{[%clk 0:00:39.1]} 33... a4 {[%clk 0:00:23.9]} 34. Ra5 {[%clk 0:00:38.8]} 34...
Bb3 {[%clk 0:00:24.4]} 35. h3 {[%clk 0:00:35.9]} 35... d4 {[%clk 0:00:24.2]} 36.
Bxb3 {[%clk 0:00:29.3]} 36... axb3 {[%clk 0:00:25.1]} 37. Rb5 {[%clk 0:00:30.2]}
37... a5 {[%clk 0:00:25]} 38. Rxb3 {[%clk 0:00:29.9]} 38... a4 {[%clk
0:00:25.6]} 39. Ra3 {[%clk 0:00:30.4]} 39... e5 {[%clk 0:00:25.6]} 40. g4 {[%clk
0:00:25.8]} 40... Kf7 {[%clk 0:00:25.8]} 41. Kf2 {[%clk 0:00:26]} 41... Ke6
{[%clk 0:00:26.1]} 42. Kf3 {[%clk 0:00:25.5]} 42... e4+ {[%clk 0:00:23.5]} 43.
Kf4 {[%clk 0:00:25.6]} 43... Kd5 {[%clk 0:00:23.2]} 44. Bg7 {[%clk 0:00:22.9]}
44... Nd7 {[%clk 0:00:22.9]} 45. h4 {[%clk 0:00:21.2]} 45... Nc5 {[%clk
0:00:22]} 46. h5 {[%clk 0:00:20.7]} 46... e3 {[%clk 0:00:21.7]} 47. Kf3 {[%clk
0:00:18.6]} 47... gxh5 {[%clk 0:00:18.9]} 48. gxh5 {[%clk 0:00:18.5]} 48... Ra7
{[%clk 0:00:19.5]} 49. h6 {[%clk 0:00:18.6]} 49... Rf7+ {[%clk 0:00:18.5]} 50.
Ke2 {[%clk 0:00:17.4]} 50... Rf2+ {[%clk 0:00:18.9]} 51. Ke1 {[%clk 0:00:17.9]}
51... Rh2 {[%clk 0:00:16.3]} 52. Kd1 {[%clk 0:00:17]} 52... d3 {[%clk
0:00:16.6]} 53. Ke1 {[%clk 0:00:17.2]} 53... Rh1# {[%clk 0:00:16.6]} 0-1

[Event "*** Titled Tuesday Blitz"]
[Site "Chess.com"]
[Date "2020.12.01"]
[Round "6"]
[White "Road2GM3000"]
[Black "MarceloPlaya"]
[Result "0-1"]
[WhiteElo "2122"]
[BlackElo "2270"]
[TimeControl "180+1"]
[EndTime "11:05:42 PST"]
[Termination "MarceloPlaya won by resignation"]

1. d4 {[%clk 0:03:00.9]} 1... e6 {[%clk 0:02:59.1]} 2. c4 {[%clk 0:03:01.5]}
2... Nf6 {[%clk 0:02:57.2]} 3. Nc3 {[%clk 0:03:02.1]} 3... Bb4 {[%clk
0:02:55.6]} 4. Nf3 {[%clk 0:03:02.8]} 4... O-O {[%clk 0:02:54.8]} 5. Bg5 {[%clk
0:03:03.3]} 5... d5 {[%clk 0:02:51.7]} 6. e3 {[%clk 0:03:02.8]} 6... c6 {[%clk
0:02:51.5]} 7. Qc2 {[%clk 0:03:00.5]} 7... h6 {[%clk 0:02:50]} 8. Bh4 {[%clk
0:03:00.4]} 8... Bxc3+ {[%clk 0:02:49.8]} 9. bxc3 {[%clk 0:03:00.3]} 9... b6
{[%clk 0:02:46.4]} 10. cxd5 {[%clk 0:02:57.7]} 10... cxd5 {[%clk 0:02:45.8]} 11.
Bd3 {[%clk 0:02:58.6]} 11... Ba6 {[%clk 0:02:44.7]} 12. O-O {[%clk 0:02:58.4]}
12... Bxd3 {[%clk 0:02:43.8]} 13. Qxd3 {[%clk 0:02:59.3]} 13... Nc6 {[%clk
0:02:43.5]} 14. c4 {[%clk 0:02:55]} 14... dxc4 {[%clk 0:02:39.9]} 15. Qxc4
{[%clk 0:02:55.9]} 15... Qd5 {[%clk 0:02:34.7]} 16. Rfc1 {[%clk 0:02:52.6]}
16... Rac8 {[%clk 0:02:28.3]} 17. Bxf6 {[%clk 0:02:50.7]} 17... gxf6 {[%clk
0:02:26.9]} 18. Qxd5 {[%clk 0:02:50.7]} 18... exd5 {[%clk 0:02:25.5]} 19. a3
{[%clk 0:02:44.8]} 19... Na5 {[%clk 0:02:24]} 20. Nd2 {[%clk 0:02:43.7]} 20...
Nc4 {[%clk 0:02:20.2]} 21. Nxc4 {[%clk 0:02:42.3]} 21... dxc4 {[%clk 0:02:19.9]}
22. a4 {[%clk 0:02:43]} 22... Rc7 {[%clk 0:02:16.5]} 23. Kf1 {[%clk 0:02:38.8]}
23... Rfc8 {[%clk 0:02:15.4]} 24. Ke2 {[%clk 0:02:39.2]} 24... Kf8 {[%clk
0:02:14.3]} 25. Rab1 {[%clk 0:02:37.6]} 25... Ke7 {[%clk 0:02:13.4]} 26. Rb4
{[%clk 0:02:38.1]} 26... Kd6 {[%clk 0:02:09.5]} 27. e4 {[%clk 0:02:38.5]} 27...
c3 {[%clk 0:01:58.8]} 28. Kd3 {[%clk 0:02:36.2]} 28... h5 {[%clk 0:01:48]} 29.
f4 {[%clk 0:02:34.6]} 29... h4 {[%clk 0:01:43.6]} 30. Rb3 {[%clk 0:02:06.2]}
30... Rg8 {[%clk 0:01:32.2]} 31. Rc2 {[%clk 0:02:03.9]} 31... Rg4 {[%clk
0:01:30.1]} 32. Ke3 {[%clk 0:02:03]} 32... Rc4 {[%clk 0:01:28.8]} 33. Kf3 {[%clk
0:01:49.3]} 33... Rg8 {[%clk 0:01:23.7]} 34. Rbxc3 {[%clk 0:01:49.1]} 34... Rxd4
{[%clk 0:01:16.6]} 35. Rc6+ {[%clk 0:01:49.3]} 35... Ke7 {[%clk 0:01:15.1]} 36.
Rc7+ {[%clk 0:01:49]} 36... Rd7 {[%clk 0:01:14.4]} 37. g4 {[%clk 0:01:41.6]}
37... hxg3 {[%clk 0:01:13.5]} 38. hxg3 {[%clk 0:01:42.5]} 38... Rd8 {[%clk
0:01:11.6]} 39. Ke3 {[%clk 0:01:36.8]} 39... Ke8 {[%clk 0:01:08.2]} 40. Rxd7
{[%clk 0:01:34.9]} 40... Rxd7 {[%clk 0:01:07.8]} 41. Rc3 {[%clk 0:01:33.2]}
41... Ke7 {[%clk 0:01:05.6]} 42. Kf3 {[%clk 0:01:32.6]} 42... a6 {[%clk
0:01:00]} 43. Kg4 {[%clk 0:01:23.7]} 43... b5 {[%clk 0:00:50.4]} 44. axb5 {[%clk
0:01:23.1]} 44... axb5 {[%clk 0:00:50]} 45. Kf5 {[%clk 0:01:19.5]} 45... b4
{[%clk 0:00:45]} 46. Rb3 {[%clk 0:01:16.7]} 46... Rb7 {[%clk 0:00:44.9]} 47. Kg4
{[%clk 0:01:17]} 47... Kd6 {[%clk 0:00:44]} 48. Kf3 {[%clk 0:01:17.6]} 48... Kc5
{[%clk 0:00:43.5]} 49. Rb1 {[%clk 0:01:03.4]} 49... Kd4 {[%clk 0:00:39.8]} 50.
g4 {[%clk 0:01:01.5]} 50... b3 {[%clk 0:00:37.2]} 51. g5 {[%clk 0:01:00.7]}
51... fxg5 {[%clk 0:00:27.1]} 52. fxg5 {[%clk 0:01:01.6]} 52... Kc3 {[%clk
0:00:26.1]} 53. Kf4 {[%clk 0:01:02.2]} 53... Kc2 {[%clk 0:00:26]} 54. Rh1 {[%clk
0:01:02.1]} 54... b2 {[%clk 0:00:24.4]} 55. Kf5 {[%clk 0:01:02.1]} 55... Rd7
{[%clk 0:00:23.2]} 56. Rh2+ {[%clk 0:00:59]} 56... Rd2 {[%clk 0:00:22.3]} 57.
Rh1 {[%clk 0:00:59]} 57... b1=Q {[%clk 0:00:17.1]} 58. Rxb1 {[%clk 0:00:58.3]}
58... Kxb1 {[%clk 0:00:17.2]} 59. Kf6 {[%clk 0:00:58.2]} 59... Rf2+ {[%clk
0:00:15.8]} 60. Kg7 {[%clk 0:00:58.8]} 60... Kc2 {[%clk 0:00:13.6]} 61. e5
{[%clk 0:00:58.2]} 61... Kd3 {[%clk 0:00:13]} 62. g6 {[%clk 0:00:58.8]} 62...
fxg6 {[%clk 0:00:10.9]} 63. Kxg6 {[%clk 0:00:56]} 63... Rg2+ {[%clk 0:00:10.8]}
64. Kf7 {[%clk 0:00:55.6]} 64... Rf2+ {[%clk 0:00:11]} 65. Kg7 {[%clk
0:00:53.6]} 65... Rg2+ {[%clk 0:00:09.1]} 66. Kf6 {[%clk 0:00:53.5]} 66... Rf2+
{[%clk 0:00:08.6]} 67. Kg7 {[%clk 0:00:53.6]} 67... Re2 {[%clk 0:00:08.8]} 68.
Kf6 {[%clk 0:00:53.1]} 68... Kd4 {[%clk 0:00:08.7]} 69. e6 {[%clk 0:00:52.9]}
69... Kd5 {[%clk 0:00:08]} 70. e7 {[%clk 0:00:53.6]} 70... Kd6 {[%clk
0:00:07.7]} 0-1

[Event "*** Titled Tuesday Blitz"]
[Site "Chess.com"]
[Date "2020.12.01"]
[Round "6"]
[White "Sam_ChessMood"]
[Black "Ermito2020"]
[Result "1-0"]
[WhiteElo "2825"]
[BlackElo "2604"]
[TimeControl "180+1"]
[EndTime "11:05:46 PST"]
[Termination "Sam_ChessMood won on time"]

1. c4 {[%clk 0:03:00.9]} 1... Nf6 {[%clk 0:02:59.4]} 2. d4 {[%clk 0:03:00.4]}
2... g6 {[%clk 0:02:59.3]} 3. Nc3 {[%clk 0:03:00.3]} 3... Bg7 {[%clk 0:02:59.8]}
4. e4 {[%clk 0:03:00.6]} 4... d6 {[%clk 0:02:59.6]} 5. Nf3 {[%clk 0:02:56.1]}
5... O-O {[%clk 0:02:59.7]} 6. Be2 {[%clk 0:02:56.5]} 6... e5 {[%clk 0:02:59.6]}
7. O-O {[%clk 0:02:56.6]} 7... Nc6 {[%clk 0:02:59.3]} 8. d5 {[%clk 0:02:57.1]}
8... Ne7 {[%clk 0:02:58.8]} 9. b4 {[%clk 0:02:57.5]} 9... a5 {[%clk 0:02:58.8]}
10. bxa5 {[%clk 0:02:55.8]} 10... Rxa5 {[%clk 0:02:58.4]} 11. a4 {[%clk
0:02:56.1]} 11... b6 {[%clk 0:02:58.4]} 12. Ba3 {[%clk 0:02:55.8]} 12... Ne8
{[%clk 0:02:56.6]} 13. Qb3 {[%clk 0:02:34.1]} 13... f5 {[%clk 0:02:36.9]} 14.
Ng5 {[%clk 0:02:32]} 14... h6 {[%clk 0:02:31.7]} 15. Ne6 {[%clk 0:02:30.3]}
15... Bxe6 {[%clk 0:02:31.3]} 16. dxe6 {[%clk 0:02:31.2]} 16... Qc8 {[%clk
0:02:19.7]} 17. c5 {[%clk 0:01:59.2]} 17... bxc5 {[%clk 0:02:19.3]} 18. Nd5
{[%clk 0:01:53]} 18... Bf6 {[%clk 0:02:04.4]} 19. Bc1 {[%clk 0:01:38.6]} 19...
Kg7 {[%clk 0:01:49.9]} 20. Qh3 {[%clk 0:01:31]} 20... g5 {[%clk 0:01:28.2]} 21.
Nxe7 {[%clk 0:01:28.9]} 21... Bxe7 {[%clk 0:01:26.8]} 22. exf5 {[%clk
0:01:28.5]} 22... Nf6 {[%clk 0:01:23.2]} 23. Ra3 {[%clk 0:01:26.4]} 23... d5
{[%clk 0:01:18.9]} 24. f4 {[%clk 0:00:54.4]} 24... exf4 {[%clk 0:01:05.1]} 25.
Bxf4 {[%clk 0:00:54.4]} 25... c4 {[%clk 0:00:53.2]} 26. Rg3 {[%clk 0:00:52]}
26... Ne4 {[%clk 0:00:52.7]} 27. Rg4 {[%clk 0:00:32.6]} 27... Rxa4 {[%clk
0:00:47.3]} 28. Be5+ {[%clk 0:00:16.5]} 28... Bf6 {[%clk 0:00:37.1]} 29. e7
{[%clk 0:00:16.6]} 29... Bxe5 {[%clk 0:00:31.8]} 30. exf8=Q+ {[%clk 0:00:15.6]}
30... Qxf8 {[%clk 0:00:32.7]} 31. Rxe4 {[%clk 0:00:13.5]} 31... dxe4 {[%clk
0:00:31.7]} 32. f6+ {[%clk 0:00:14]} 32... Kh8 {[%clk 0:00:24.4]} 33. Qe6 {[%clk
0:00:06.9]} 33... Bd4+ {[%clk 0:00:22.4]} 34. Kh1 {[%clk 0:00:07.4]} 34... c3
{[%clk 0:00:19.7]} 35. Qxe4 {[%clk 0:00:07.2]} 35... Rb4 {[%clk 0:00:14.9]} 36.
Bd3 {[%clk 0:00:07.4]} 36... Qg8 {[%clk 0:00:12.4]} 37. f7 {[%clk 0:00:06.5]}
37... Qxf7 {[%clk 0:00:12.2]} 38. Rxf7 {[%clk 0:00:05.9]} 38... Rb1+ {[%clk
0:00:13.1]} 39. Rf1 {[%clk 0:00:05.9]} 39... Rxf1+ {[%clk 0:00:12.4]} 40. Bxf1
{[%clk 0:00:06.1]} 40... Bf6 {[%clk 0:00:13.3]} 41. Bd3 {[%clk 0:00:06.1]} 41...
Kg7 {[%clk 0:00:14.2]} 42. Qg6+ {[%clk 0:00:06.3]} 42... Kf8 {[%clk 0:00:14]}
43. Qxf6+ {[%clk 0:00:07.2]} 1-0